[Event "Titled Tuesday Blitz January 17 Early 2023"]
[White "Erzhanov, Arman"]
[Black "Better_Chess_Faster"]
[WhiteFideId "4138821"]
[WhiteElo "2228"]
[BlackElo "2030"]
[Result "1/2-1/2"]
[Round "04"]
[TimeControl "180+2"]
[Date "2023.01.17"]
[WhiteClock "0:00:25"]
[BlackClock "0:00:42"]

1. e4 {[%clk 0:01:08]}  e5 {[%clk 0:02:59]} 2. Nf3 {[%clk 0:01:08]}  Nc6 {[%clk 0:03:00]} 3. Bc4 {[%clk 0:01:09]}  Nf6 {[%clk 0:02:59]} 4. d4 {[%clk 0:01:09]}  exd4 {[%clk 0:02:59]} 5. e5 {[%clk 0:01:10]}  Ne4 {[%clk 0:02:59]} 6. Qe2 {[%clk 0:01:08]}  Nc5 {[%clk 0:02:59]} 7. O-O {[%clk 0:01:09]}  Ne6 {[%clk 0:02:58]} 8. Rd1 {[%clk 0:01:09]}  d5 {[%clk 0:02:57]} 9. exd6 {[%clk 0:01:06]}  Bxd6 {[%clk 0:02:57]} 10. Bg5 {[%clk 0:01:01]}  Qd7 {[%clk 0:02:49]} 11. Bxe6 {[%clk 0:00:58]}  Qxe6 {[%clk 0:02:46]} 12. Qxe6+ {[%clk 0:00:55]}  Bxe6 {[%clk 0:02:47]} 13. Nxd4 {[%clk 0:00:55]}  Nxd4 {[%clk 0:02:42]} 14. Rxd4 {[%clk 0:00:56]}  O-O {[%clk 0:02:35]} 15. Nc3 {[%clk 0:00:56]}  Be5 {[%clk 0:02:28]} 16. Rd2 {[%clk 0:00:51]}  Bxc3 {[%clk 0:02:26]} 17. bxc3 {[%clk 0:00:51]}  f6 {[%clk 0:02:26]} 18. Bf4 {[%clk 0:00:51]}  Rf7 {[%clk 0:02:22]} 19. a3 {[%clk 0:00:51]}  Kf8 {[%clk 0:02:20]} 20. Rad1 {[%clk 0:00:49]}  Ke8 {[%clk 0:02:19]} 21. Re1 {[%clk 0:00:47]}  Re7 {[%clk 0:02:17]} 22. Bxc7 {[%clk 0:00:47]}  Rxc7 {[%clk 0:02:11]} 23. Rxe6+ {[%clk 0:00:47]}  Kf7 {[%clk 0:02:10]} 24. Re3 {[%clk 0:00:44]}  Rac8 {[%clk 0:02:09]} 25. Rdd3 {[%clk 0:00:43]}  g6 {[%clk 0:02:07]} 26. Kf1 {[%clk 0:00:43]}  f5 {[%clk 0:02:06]} 27. g3 {[%clk 0:00:42]}  Kf6 {[%clk 0:02:05]} 28. Ke2 {[%clk 0:00:42]}  a6 {[%clk 0:02:03]} 29. Kd2 {[%clk 0:00:42]}  h6 {[%clk 0:02:00]} 30. f4 {[%clk 0:00:42]}  Rc6 {[%clk 0:01:57]} 31. Re5 {[%clk 0:00:40]}  R8c7 {[%clk 0:01:57]} 32. Red5 {[%clk 0:00:40]}  b5 {[%clk 0:01:55]} 33. Rd6+ {[%clk 0:00:40]}  Kf7 {[%clk 0:01:53]} 34. Rxc6 {[%clk 0:00:40]}  Rxc6 {[%clk 0:01:54]} 35. Rd7+ {[%clk 0:00:40]}  Kf6 {[%clk 0:01:54]} 36. Rh7 {[%clk 0:00:40]}  h5 {[%clk 0:01:54]} 37. Ra7 {[%clk 0:00:40]}  Ke6 {[%clk 0:01:53]} 38. Kd3 {[%clk 0:00:40]}  Kd6 {[%clk 0:01:49]} 39. Kd4 {[%clk 0:00:38]}  Rc4+ {[%clk 0:01:48]} 40. Kd3 {[%clk 0:00:39]}  Rc6 {[%clk 0:01:49]} 41. Rg7 {[%clk 0:00:37]}  Kc5 {[%clk 0:01:48]} 42. h3 {[%clk 0:00:33]}  Rd6+ {[%clk 0:01:49]} 43. Ke2 {[%clk 0:00:30]}  Kc4 {[%clk 0:01:47]} 44. Rc7+ {[%clk 0:00:31]}  Kd5 {[%clk 0:01:48]} 45. Kd3 {[%clk 0:00:29]}  Ke6+ {[%clk 0:01:34]} 46. Ke3 {[%clk 0:00:29]}  Kd5 {[%clk 0:01:32]} 47. Rc8 {[%clk 0:00:27]}  Re6+ {[%clk 0:01:28]} 48. Kd3 {[%clk 0:00:27]}  Rd6 {[%clk 0:01:28]} 49. c4+ {[%clk 0:00:27]}  bxc4+ {[%clk 0:01:20]} 50. Rxc4 {[%clk 0:00:27]}  Rb6 {[%clk 0:01:18]} 51. Rb4 {[%clk 0:00:25]}  Re6 {[%clk 0:01:15]} 52. Ra4 {[%clk 0:00:25]}  Kc5 {[%clk 0:01:12]} 53. Ra5+ {[%clk 0:00:23]}  Kb6 {[%clk 0:01:12]} 54. Re5 {[%clk 0:00:23]}  Rd6+ {[%clk 0:01:12]} 55. Kc3 {[%clk 0:00:24]}  Rd1 {[%clk 0:01:11]} 56. Re6+ {[%clk 0:00:22]}  Kb5 {[%clk 0:01:11]} 57. Rxg6 {[%clk 0:00:23]}  Rf1 {[%clk 0:01:10]} 58. Rg5 {[%clk 0:00:23]}  Rf3+ {[%clk 0:01:09]} 59. Kb2 {[%clk 0:00:23]}  Ka4 {[%clk 0:01:07]} 60. Rxf5 {[%clk 0:00:23]}  Rxg3 {[%clk 0:01:07]} 61. Rxh5 {[%clk 0:00:24]}  Rf3 {[%clk 0:01:07]} 62. f5 {[%clk 0:00:23]}  a5 {[%clk 0:01:06]} 63. h4 {[%clk 0:00:24]}  Rf4 {[%clk 0:01:06]} 64. Rh8 {[%clk 0:00:19]}  Rxf5 {[%clk 0:01:05]} 65. h5 {[%clk 0:00:20]}  Rf3 {[%clk 0:01:03]} 66. h6 {[%clk 0:00:20]}  Rxa3 {[%clk 0:00:57]} 67. Rb8 {[%clk 0:00:20]}  Rh3 {[%clk 0:00:57]} 68. Rb6 {[%clk 0:00:21]}  Rh4 {[%clk 0:00:53]} 69. Kc3 {[%clk 0:00:16]}  Rh2 {[%clk 0:00:52]} 70. Kd3 {[%clk 0:00:16]}  Ka3 {[%clk 0:00:50]} 71. c4 {[%clk 0:00:16]}  a4 {[%clk 0:00:49]} 72. c5 {[%clk 0:00:17]}  Ka2 {[%clk 0:00:47]} 73. Ra6 {[%clk 0:00:16]}  a3 {[%clk 0:00:47]} 74. Ke4 {[%clk 0:00:16]}  Kb2 {[%clk 0:00:45]} 75. Kf5 {[%clk 0:00:17]}  a2 {[%clk 0:00:44]} 76. Kg6 {[%clk 0:00:17]}  a1=Q {[%clk 0:00:43]} 77. Rxa1 {[%clk 0:00:18]}  Kxa1 {[%clk 0:00:44]} 78. h7 {[%clk 0:00:19]}  Rg2+ {[%clk 0:00:42]} 79. Kf7 {[%clk 0:00:19]}  Rf2+ {[%clk 0:00:43]} 80. Kg8 {[%clk 0:00:20]}  Rg2+ {[%clk 0:00:43]} 81. Kf8 {[%clk 0:00:21]}  Rf2+ {[%clk 0:00:43]} 82. Kg7 {[%clk 0:00:20]}  Rg2+ {[%clk 0:00:43]} 83. Kh6 {[%clk 0:00:21]}  Rh2+ {[%clk 0:00:41]} 84. Kg6 {[%clk 0:00:22]}  Rg2+ {[%clk 0:00:42]} 85. Kf7 {[%clk 0:00:22]}  Rf2+ {[%clk 0:00:42]} 86. Kg8 {[%clk 0:00:23]}  Rg2+ {[%clk 0:00:41]} 87. Kf8 {[%clk 0:00:23]}  Rf2+ {[%clk 0:00:42]} 88. Kg7 {[%clk 0:00:24]}  Rg2+ {[%clk 0:00:42]} 89. Kh6 {[%clk 0:00:24]}  Rh2+ {[%clk 0:00:42]} 90. Kg6 {[%clk 0:00:25]} 1/2-1/2


[Site "https://www.chess.com"]

[Event "Titled Tuesday Blitz January 17 Early 2023"]
[White "Baches Garcia, Guillermo"]
[Black "Kalajzic, Ivan"]
[WhiteFideId "2209764"]
[BlackFideId "14506378"]
[WhiteElo "2327"]
[BlackElo "2062"]
[Result "0-1"]
[Round "04"]
[TimeControl "180+2"]
[Date "2023.01.17"]
[WhiteClock "0:00:20"]
[BlackClock "0:00:19"]

1. e4 {[%clk 0:03:00]}  c6 {[%clk 0:02:58]} 2. d4 {[%clk 0:02:59]}  d5 {[%clk 0:02:58]} 3. e5 {[%clk 0:03:00]}  c5 {[%clk 0:02:58]} 4. dxc5 {[%clk 0:02:59]}  e6 {[%clk 0:02:58]} 5. Be3 {[%clk 0:02:59]}  Nc6 {[%clk 0:02:57]} 6. Nf3 {[%clk 0:02:56]}  Qc7 {[%clk 0:02:57]} 7. Bb5 {[%clk 0:02:51]}  Bd7 {[%clk 0:02:54]} 8. Bxc6 {[%clk 0:02:47]}  bxc6 {[%clk 0:02:52]} 9. c3 {[%clk 0:02:43]}  Ne7 {[%clk 0:02:51]} 10. Nbd2 {[%clk 0:02:35]}  Ng6 {[%clk 0:02:48]} 11. Bd4 {[%clk 0:02:32]}  Be7 {[%clk 0:02:49]} 12. O-O {[%clk 0:02:29]}  O-O {[%clk 0:02:49]} 13. b4 {[%clk 0:02:28]}  f6 {[%clk 0:02:48]} 14. Re1 {[%clk 0:02:24]}  f5 {[%clk 0:02:44]} 15. a3 {[%clk 0:02:19]}  Nf4 {[%clk 0:02:41]} 16. Nf1 {[%clk 0:02:05]}  Be8 {[%clk 0:02:38]} 17. Ne3 {[%clk 0:01:58]}  Bh5 {[%clk 0:02:35]} 18. Nf1 {[%clk 0:01:42]}  g5 {[%clk 0:02:23]} 19. Ng3 {[%clk 0:01:41]}  Bxf3 {[%clk 0:01:22]} 20. Qxf3 {[%clk 0:01:39]}  Qd8 {[%clk 0:01:15]} 21. Nh5 {[%clk 0:01:33]}  Nxh5 {[%clk 0:01:09]} 22. Qxh5 {[%clk 0:01:33]}  Rf7 {[%clk 0:01:07]} 23. h3 {[%clk 0:01:23]}  Rg7 {[%clk 0:01:07]} 24. Re3 {[%clk 0:01:10]}  Rg6 {[%clk 0:00:58]} 25. Rd1 {[%clk 0:01:00]}  Qf8 {[%clk 0:00:58]} 26. Qe2 {[%clk 0:00:58]}  f4 {[%clk 0:00:49]} 27. Red3 {[%clk 0:00:54]}  Qf5 {[%clk 0:00:47]} 28. c4 {[%clk 0:00:45]}  Rf8 {[%clk 0:00:46]} 29. cxd5 {[%clk 0:00:43]}  cxd5 {[%clk 0:00:46]} 30. f3 {[%clk 0:00:41]}  h5 {[%clk 0:00:46]} 31. Kf1 {[%clk 0:00:39]}  g4 {[%clk 0:00:45]} 32. hxg4 {[%clk 0:00:38]}  hxg4 {[%clk 0:00:45]} 33. Ke1 {[%clk 0:00:38]}  Rf7 {[%clk 0:00:39]} 34. Kd2 {[%clk 0:00:37]}  Rh7 {[%clk 0:00:39]} 35. Kc3 {[%clk 0:00:34]}  Rh2 {[%clk 0:00:39]} 36. Qf1 {[%clk 0:00:32]}  gxf3 {[%clk 0:00:38]} 37. gxf3 {[%clk 0:00:32]}  Rgg2 {[%clk 0:00:38]} 38. R3d2 {[%clk 0:00:29]}  Qh3 {[%clk 0:00:22]} 39. c6 {[%clk 0:00:24]}  Bd8 {[%clk 0:00:20]} 40. b5 {[%clk 0:00:23]}  Ba5+ {[%clk 0:00:19]} 41. Kd3 {[%clk 0:00:20]}  Rxd2+ {[%clk 0:00:19]} 0-1


[Site "https://www.chess.com"]

[Event "Titled Tuesday Blitz January 17 Early 2023"]
[White "Szyszylo, Rafal"]
[Black "Bas Mas, Jose Joaquin"]
[WhiteFideId "1109626"]
[BlackFideId "22219064"]
[WhiteElo "2091"]
[BlackElo "2197"]
[Result "1-0"]
[Round "04"]
[TimeControl "180+2"]
[Date "2023.01.17"]
[WhiteClock "0:01:06"]
[BlackClock "0:00:28"]

1. e4 {[%clk 0:03:00]}  Nf6 {[%clk 0:02:59]} 2. e5 {[%clk 0:03:00]}  Nd5 {[%clk 0:03:00]} 3. d4 {[%clk 0:03:01]}  d6 {[%clk 0:03:00]} 4. Nf3 {[%clk 0:03:02]}  dxe5 {[%clk 0:03:00]} 5. Nxe5 {[%clk 0:03:02]}  c6 {[%clk 0:03:00]} 6. Be2 {[%clk 0:03:01]}  Bf5 {[%clk 0:02:59]} 7. O-O {[%clk 0:03:01]}  Nd7 {[%clk 0:03:00]} 8. Nf3 {[%clk 0:03:01]}  e6 {[%clk 0:02:55]} 9. Re1 {[%clk 0:03:01]}  Be7 {[%clk 0:02:51]} 10. a3 {[%clk 0:03:02]}  O-O {[%clk 0:02:51]} 11. c4 {[%clk 0:03:02]}  N5f6 {[%clk 0:02:52]} 12. Nc3 {[%clk 0:03:02]}  Qc7 {[%clk 0:02:41]} 13. h3 {[%clk 0:02:55]}  h6 {[%clk 0:02:40]} 14. Be3 {[%clk 0:02:51]}  Rad8 {[%clk 0:02:32]} 15. Qc1 {[%clk 0:02:50]}  Rfe8 {[%clk 0:02:25]} 16. c5 {[%clk 0:02:49]}  Ne4 {[%clk 0:02:22]} 17. Bf4 {[%clk 0:02:48]}  Qc8 {[%clk 0:02:22]} 18. b4 {[%clk 0:02:39]}  Nxc3 {[%clk 0:02:15]} 19. Qxc3 {[%clk 0:02:40]}  Nf6 {[%clk 0:02:16]} 20. Be5 {[%clk 0:02:30]}  Nd5 {[%clk 0:02:11]} 21. Qb3 {[%clk 0:02:26]}  Bf6 {[%clk 0:01:59]} 22. b5 {[%clk 0:02:18]}  Bxe5 {[%clk 0:01:52]} 23. dxe5 {[%clk 0:02:17]}  Nc7 {[%clk 0:01:46]} 24. bxc6 {[%clk 0:02:16]}  bxc6 {[%clk 0:01:46]} 25. Red1 {[%clk 0:02:06]}  Rd5 {[%clk 0:01:44]} 26. Rxd5 {[%clk 0:02:01]}  cxd5 {[%clk 0:01:37]} 27. Nd4 {[%clk 0:01:55]}  Bg6 {[%clk 0:01:37]} 28. c6 {[%clk 0:01:50]}  Qb8 {[%clk 0:01:34]} 29. Qb4 {[%clk 0:01:32]}  a6 {[%clk 0:01:09]} 30. Rc1 {[%clk 0:01:31]}  Rc8 {[%clk 0:01:01]} 31. Qb7 {[%clk 0:01:15]}  Kf8 {[%clk 0:00:47]} 32. Bxa6 {[%clk 0:01:13]}  Nxa6 {[%clk 0:00:46]} 33. Qxa6 {[%clk 0:01:13]}  Ke7 {[%clk 0:00:34]} 34. c7 {[%clk 0:01:11]}  Rxc7 {[%clk 0:00:31]} 35. Qd6+ {[%clk 0:01:12]}  Ke8 {[%clk 0:00:28]} 36. Qxc7 {[%clk 0:01:06]} 1-0


[Site "https://www.chess.com"]

[Event "Titled Tuesday Blitz January 17 Early 2023"]
[White "Riverol, Jose"]
[Black "Lacasa Diaz, Jose Antonio"]
[WhiteFideId "3000427"]
[BlackFideId "2203375"]
[WhiteElo "2304"]
[BlackElo "2359"]
[Result "1/2-1/2"]
[Round "04"]
[TimeControl "180+2"]
[Date "2023.01.17"]
[WhiteClock "0:00:11"]
[BlackClock "0:00:11"]

1. d4 {[%clk 0:02:58]}  d5 {[%clk 0:02:59]} 2. c4 {[%clk 0:02:57]}  e6 {[%clk 0:02:59]} 3. Nc3 {[%clk 0:02:56]}  c5 {[%clk 0:03:00]} 4. Nf3 {[%clk 0:02:56]}  Nc6 {[%clk 0:02:59]} 5. cxd5 {[%clk 0:02:56]}  exd5 {[%clk 0:02:59]} 6. Bg5 {[%clk 0:02:56]}  Be7 {[%clk 0:02:59]} 7. Bxe7 {[%clk 0:02:55]}  Ngxe7 {[%clk 0:03:00]} 8. e3 {[%clk 0:02:54]}  c4 {[%clk 0:03:00]} 9. b3 {[%clk 0:02:50]}  b5 {[%clk 0:02:56]} 10. bxc4 {[%clk 0:02:41]}  bxc4 {[%clk 0:02:54]} 11. e4 {[%clk 0:02:34]}  O-O {[%clk 0:02:45]} 12. Be2 {[%clk 0:01:53]}  Bg4 {[%clk 0:02:30]} 13. exd5 {[%clk 0:01:43]}  Nxd5 {[%clk 0:02:30]} 14. Nxd5 {[%clk 0:01:44]}  Qxd5 {[%clk 0:02:29]} 15. O-O {[%clk 0:01:45]}  Rac8 {[%clk 0:02:13]} 16. Rc1 {[%clk 0:01:21]}  Bxf3 {[%clk 0:02:11]} 17. Bxf3 {[%clk 0:01:13]}  Qxd4 {[%clk 0:02:11]} 18. Qa4 {[%clk 0:00:38]}  Ne5 {[%clk 0:02:08]} 19. Be2 {[%clk 0:00:27]}  g6 {[%clk 0:01:40]} 20. Rfd1 {[%clk 0:00:20]}  Qc5 {[%clk 0:01:40]} 21. Rc3 {[%clk 0:00:11]}  Rc7 {[%clk 0:01:34]} 22. h3 {[%clk 0:00:10]}  Rb8 {[%clk 0:01:28]} 23. Rdc1 {[%clk 0:00:08]}  Rbc8 {[%clk 0:01:23]} 24. g3 {[%clk 0:00:07]}  h5 {[%clk 0:01:19]} 25. h4 {[%clk 0:00:07]}  Qd4 {[%clk 0:01:08]} 26. a3 {[%clk 0:00:05]}  Rc6 {[%clk 0:01:00]} 27. Qb4 {[%clk 0:00:05]}  Rf6 {[%clk 0:00:51]} 28. Re3 {[%clk 0:00:05]}  Kg7 {[%clk 0:00:31]} 29. Qc3 {[%clk 0:00:05]}  Qxc3 {[%clk 0:00:29]} 30. Rcxc3 {[%clk 0:00:05]}  Re6 {[%clk 0:00:26]} 31. Re4 {[%clk 0:00:05]}  Rc7 {[%clk 0:00:20]} 32. f4 {[%clk 0:00:05]}  Ng4 {[%clk 0:00:17]} 33. Rxe6 {[%clk 0:00:05]}  fxe6 {[%clk 0:00:17]} 34. Rxc4 {[%clk 0:00:05]}  Rb7 {[%clk 0:00:17]} 35. Re4 {[%clk 0:00:05]}  Kf6 {[%clk 0:00:16]} 36. Bc4 {[%clk 0:00:05]}  Rb6 {[%clk 0:00:17]} 37. Re2 {[%clk 0:00:04]}  Rd6 {[%clk 0:00:16]} 38. Kg2 {[%clk 0:00:05]}  a5 {[%clk 0:00:16]} 39. Kf3 {[%clk 0:00:05]}  Nh6 {[%clk 0:00:16]} 40. Bb3 {[%clk 0:00:05]}  Nf5 {[%clk 0:00:17]} 41. Kg2 {[%clk 0:00:03]}  Nd4 {[%clk 0:00:15]} 42. Rd2 {[%clk 0:00:02]}  Rb6 {[%clk 0:00:13]} 43. Rxd4 {[%clk 0:00:01]}  Rxb3 {[%clk 0:00:13]} 44. Ra4 {[%clk 0:00:02]}  Rb5 {[%clk 0:00:13]} 45. Kh3 {[%clk 0:00:03]}  Kf5 {[%clk 0:00:12]} 46. Rc4 {[%clk 0:00:03]}  Rb3 {[%clk 0:00:12]} 47. Rc5+ {[%clk 0:00:03]}  Kf6 {[%clk 0:00:12]} 48. Rxa5 {[%clk 0:00:04]}  Rc3 {[%clk 0:00:12]} 49. Rg5 {[%clk 0:00:05]}  Rxa3 {[%clk 0:00:12]} 50. Re5 {[%clk 0:00:05]}  Ra1 {[%clk 0:00:12]} 51. Re2 {[%clk 0:00:06]}  Rg1 {[%clk 0:00:12]} 52. Rh2 {[%clk 0:00:07]}  Kf5 {[%clk 0:00:10]} 53. Rg2 {[%clk 0:00:07]}  Rxg2 {[%clk 0:00:09]} 54. Kxg2 {[%clk 0:00:07]}  e5 {[%clk 0:00:09]} 55. fxe5 {[%clk 0:00:07]}  Kxe5 {[%clk 0:00:10]} 56. Kf3 {[%clk 0:00:08]}  Kf5 {[%clk 0:00:10]} 57. Kf2 {[%clk 0:00:07]}  Ke4 {[%clk 0:00:10]} 58. Ke2 {[%clk 0:00:07]}  Ke5 {[%clk 0:00:10]} 59. Kf3 {[%clk 0:00:08]}  Kf5 {[%clk 0:00:10]} 60. Kf2 {[%clk 0:00:08]}  Kg4 {[%clk 0:00:10]} 61. Kg2 {[%clk 0:00:09]}  g5 {[%clk 0:00:11]} 62. hxg5 {[%clk 0:00:09]}  Kxg5 {[%clk 0:00:11]} 63. Kh3 {[%clk 0:00:09]}  Kg6 {[%clk 0:00:11]} 64. Kh4 {[%clk 0:00:10]}  Kh6 {[%clk 0:00:11]} 65. g4 {[%clk 0:00:10]}  hxg4 {[%clk 0:00:11]} 66. Kxg4 {[%clk 0:00:11]} 1/2-1/2


[Site "https://www.chess.com"]

[Event "Titled Tuesday Blitz January 17 Early 2023"]
[White "ritanovikova"]
[Black "Melikhov, Evgeny V."]
[BlackFideId "4122046"]
[WhiteElo "2137"]
[BlackElo "2269"]
[Result "0-1"]
[Round "04"]
[TimeControl "180+2"]
[Date "2023.01.17"]
[WhiteClock "0:00:57"]
[BlackClock "0:00:42"]

1. d4 {[%clk 0:02:59]}  Nf6 {[%clk 0:02:59]} 2. Bf4 {[%clk 0:02:55]}  d5 {[%clk 0:02:58]} 3. c3 {[%clk 0:02:55]}  c5 {[%clk 0:02:59]} 4. e3 {[%clk 0:02:55]}  Nc6 {[%clk 0:02:57]} 5. Nd2 {[%clk 0:02:54]}  cxd4 {[%clk 0:02:56]} 6. exd4 {[%clk 0:02:54]}  Bf5 {[%clk 0:02:53]} 7. Qb3 {[%clk 0:02:53]}  Qc8 {[%clk 0:02:41]} 8. Ngf3 {[%clk 0:02:50]}  e6 {[%clk 0:02:40]} 9. Bb5 {[%clk 0:02:49]}  a6 {[%clk 0:02:35]} 10. Be2 {[%clk 0:02:43]}  Be7 {[%clk 0:02:27]} 11. O-O {[%clk 0:02:43]}  O-O {[%clk 0:02:26]} 12. Nh4 {[%clk 0:02:42]}  Bg6 {[%clk 0:02:23]} 13. Nxg6 {[%clk 0:02:42]}  hxg6 {[%clk 0:02:21]} 14. Nf3 {[%clk 0:02:41]}  Ne4 {[%clk 0:02:19]} 15. Ne5 {[%clk 0:02:38]}  Nxe5 {[%clk 0:02:18]} 16. Bxe5 {[%clk 0:02:38]}  Bd6 {[%clk 0:02:15]} 17. Bxd6 {[%clk 0:02:34]}  Nxd6 {[%clk 0:02:15]} 18. Bf3 {[%clk 0:02:29]}  Qc4 {[%clk 0:02:13]} 19. Qxc4 {[%clk 0:02:24]}  Nxc4 {[%clk 0:02:13]} 20. b3 {[%clk 0:02:21]}  Nd2 {[%clk 0:02:12]} 21. Rfd1 {[%clk 0:02:18]}  Nxf3+ {[%clk 0:02:12]} 22. gxf3 {[%clk 0:02:18]}  Rfc8 {[%clk 0:02:12]} 23. Rac1 {[%clk 0:02:11]}  b5 {[%clk 0:02:11]} 24. a3 {[%clk 0:02:08]}  Rc6 {[%clk 0:02:05]} 25. Rd2 {[%clk 0:02:06]}  Rac8 {[%clk 0:02:04]} 26. Rdc2 {[%clk 0:02:06]}  Kf8 {[%clk 0:01:58]} 27. f4 {[%clk 0:02:03]}  Ke7 {[%clk 0:01:57]} 28. Kf1 {[%clk 0:02:02]}  Kf6 {[%clk 0:01:46]} 29. Kg2 {[%clk 0:02:00]}  Kf5 {[%clk 0:01:43]} 30. Kg3 {[%clk 0:01:54]}  Ke4 {[%clk 0:01:23]} 31. f3+ {[%clk 0:01:29]}  Kd3 {[%clk 0:01:20]} 32. Rb2 {[%clk 0:01:25]}  Rxc3 {[%clk 0:01:19]} 33. Rd1+ {[%clk 0:01:26]}  Ke3 {[%clk 0:01:13]} 34. Re1+ {[%clk 0:01:25]}  Kxd4 {[%clk 0:01:12]} 35. f5 {[%clk 0:01:13]}  gxf5 {[%clk 0:01:10]} 36. Kf4 {[%clk 0:01:13]}  Rd3 {[%clk 0:01:07]} 37. h4 {[%clk 0:01:12]}  Rcc3 {[%clk 0:01:07]} 38. a4 {[%clk 0:01:09]}  Rxf3+ {[%clk 0:01:06]} 39. Kg5 {[%clk 0:01:08]}  Rg3+ {[%clk 0:01:00]} 40. Kh5 {[%clk 0:01:08]}  Rxb3 {[%clk 0:00:56]} 41. axb5 {[%clk 0:01:03]}  Rxb2 {[%clk 0:00:53]} 42. Re4+ {[%clk 0:00:59]}  fxe4 {[%clk 0:00:46]} 43. b6 {[%clk 0:00:58]}  g6+ {[%clk 0:00:46]} 44. Kh6 {[%clk 0:00:58]}  Rxb6 {[%clk 0:00:45]} 45. h5 {[%clk 0:00:57]}  gxh5 {[%clk 0:00:43]} 46. Kh7 {[%clk 0:00:57]}  h4 {[%clk 0:00:42]} 0-1


[Site "https://www.chess.com"]

[Event "Titled Tuesday Blitz January 17 Early 2023"]
[White "Kuchava, Ana"]
[Black "Kiseleva, Arina"]
[WhiteFideId "13605348"]
[BlackFideId "4164989"]
[WhiteElo "2101"]
[BlackElo "1962"]
[Result "0-1"]
[Round "04"]
[TimeControl "180+2"]
[Date "2023.01.17"]
[WhiteClock "0:00:12"]
[BlackClock "0:00:07"]

1. d4 {[%clk 0:03:00]}  Nf6 {[%clk 0:02:59]} 2. Nf3 {[%clk 0:02:57]}  e6 {[%clk 0:02:57]} 3. c4 {[%clk 0:02:54]}  Bb4+ {[%clk 0:02:56]} 4. Bd2 {[%clk 0:02:53]}  Bxd2+ {[%clk 0:02:56]} 5. Nbxd2 {[%clk 0:02:50]}  O-O {[%clk 0:02:53]} 6. e3 {[%clk 0:02:47]}  d6 {[%clk 0:02:49]} 7. Bd3 {[%clk 0:02:45]}  Nc6 {[%clk 0:02:47]} 8. a3 {[%clk 0:02:39]}  a5 {[%clk 0:02:46]} 9. Qc2 {[%clk 0:02:36]}  a4 {[%clk 0:02:37]} 10. O-O {[%clk 0:02:35]}  Qe7 {[%clk 0:02:30]} 11. Ng5 {[%clk 0:02:07]}  h6 {[%clk 0:02:27]} 12. Nge4 {[%clk 0:02:06]}  e5 {[%clk 0:02:17]} 13. d5 {[%clk 0:01:49]}  Nxe4 {[%clk 0:01:51]} 14. Nxe4 {[%clk 0:01:27]}  Nd8 {[%clk 0:01:47]} 15. c5 {[%clk 0:01:26]}  f5 {[%clk 0:01:46]} 16. cxd6 {[%clk 0:01:23]}  cxd6 {[%clk 0:01:45]} 17. Ng3 {[%clk 0:01:20]}  f4 {[%clk 0:01:23]} 18. exf4 {[%clk 0:01:19]}  exf4 {[%clk 0:01:22]} 19. Rae1 {[%clk 0:01:13]}  Qh4 {[%clk 0:01:17]} 20. Re4 {[%clk 0:00:28]}  Qg5 {[%clk 0:01:07]} 21. Ne2 {[%clk 0:00:18]}  f3 {[%clk 0:01:05]} 22. Ng3 {[%clk 0:00:19]}  Bf5 {[%clk 0:00:50]} 23. Re3 {[%clk 0:00:17]}  Bxd3 {[%clk 0:00:47]} 24. Qxd3 {[%clk 0:00:18]}  fxg2 {[%clk 0:00:31]} 25. Kxg2 {[%clk 0:00:19]}  Nf7 {[%clk 0:00:26]} 26. Qf5 {[%clk 0:00:13]}  Qd8 {[%clk 0:00:12]} 27. Qe6 {[%clk 0:00:11]}  Kh8 {[%clk 0:00:11]} 28. Nf5 {[%clk 0:00:11]}  Ng5 {[%clk 0:00:09]} 29. Qxd6 {[%clk 0:00:11]}  Rxf5 {[%clk 0:00:07]} 30. Qxd8+ {[%clk 0:00:06]}  Rxd8 {[%clk 0:00:08]} 31. Rfe1 {[%clk 0:00:06]}  Rfxd5 {[%clk 0:00:07]} 32. Re8+ {[%clk 0:00:06]}  Kh7 {[%clk 0:00:07]} 33. R8e7 {[%clk 0:00:06]}  R5d7 {[%clk 0:00:06]} 34. R7e4 {[%clk 0:00:06]}  Nxe4 {[%clk 0:00:06]} 35. Rxe4 {[%clk 0:00:06]}  Rd2 {[%clk 0:00:06]} 36. Rb4 {[%clk 0:00:06]}  R8d7 {[%clk 0:00:06]} 37. Rb6 {[%clk 0:00:06]}  Rc7 {[%clk 0:00:05]} 38. Kg3 {[%clk 0:00:06]}  Rcc2 {[%clk 0:00:05]} 39. Rxb7 {[%clk 0:00:06]}  Rxb2 {[%clk 0:00:04]} 40. Ra7 {[%clk 0:00:05]}  Rb3+ {[%clk 0:00:04]} 41. Kg2 {[%clk 0:00:04]}  Rxa3 {[%clk 0:00:05]} 42. h4 {[%clk 0:00:04]}  Raa2 {[%clk 0:00:05]} 43. h5 {[%clk 0:00:05]}  Rxf2+ {[%clk 0:00:04]} 44. Kg3 {[%clk 0:00:06]}  Rfb2 {[%clk 0:00:04]} 45. Kf3 {[%clk 0:00:06]}  Rb4 {[%clk 0:00:04]} 46. Ke3 {[%clk 0:00:06]}  a3 {[%clk 0:00:04]} 47. Kd3 {[%clk 0:00:07]}  Rbb2 {[%clk 0:00:04]} 48. Kc3 {[%clk 0:00:08]}  Ra1 {[%clk 0:00:03]} 49. Ra6 {[%clk 0:00:08]}  Rc1+ {[%clk 0:00:03]} 50. Kd3 {[%clk 0:00:08]}  Rcc2 {[%clk 0:00:04]} 51. Rxa3 {[%clk 0:00:06]}  Rh2 {[%clk 0:00:03]} 52. Ra5 {[%clk 0:00:06]}  Rh3+ {[%clk 0:00:03]} 53. Ke4 {[%clk 0:00:06]}  Rbh2 {[%clk 0:00:03]} 54. Kf4 {[%clk 0:00:07]}  Rxh5 {[%clk 0:00:03]} 55. Ra7 {[%clk 0:00:08]}  R2h4+ {[%clk 0:00:03]} 56. Kg3 {[%clk 0:00:08]}  Re4 {[%clk 0:00:03]} 57. Rb7 {[%clk 0:00:09]}  Ree5 {[%clk 0:00:04]} 58. Kf3 {[%clk 0:00:09]}  Rhg5 {[%clk 0:00:04]} 59. Kf4 {[%clk 0:00:09]}  h5 {[%clk 0:00:05]} 60. Rb1 {[%clk 0:00:09]}  Kh6 {[%clk 0:00:05]} 61. Rh1 {[%clk 0:00:09]}  Ref5+ {[%clk 0:00:05]} 62. Ke4 {[%clk 0:00:09]}  g6 {[%clk 0:00:05]} 63. Ra1 {[%clk 0:00:09]}  Rg4+ {[%clk 0:00:06]} 64. Ke3 {[%clk 0:00:08]}  Kg5 {[%clk 0:00:06]} 65. Ra8 {[%clk 0:00:08]}  h4 {[%clk 0:00:06]} 66. Ra1 {[%clk 0:00:08]}  h3 {[%clk 0:00:06]} 67. Rh1 {[%clk 0:00:09]}  Rh4 {[%clk 0:00:06]} 68. Rg1+ {[%clk 0:00:09]}  Kh5 {[%clk 0:00:06]} 69. Rh1 {[%clk 0:00:09]}  h2 {[%clk 0:00:06]} 70. Ke2 {[%clk 0:00:09]}  g5 {[%clk 0:00:07]} 71. Ke3 {[%clk 0:00:09]}  g4 {[%clk 0:00:07]} 72. Ke2 {[%clk 0:00:10]}  g3 {[%clk 0:00:07]} 73. Ke3 {[%clk 0:00:11]}  g2 {[%clk 0:00:07]} 74. Ke2 {[%clk 0:00:12]}  gxh1=Q {[%clk 0:00:07]} 0-1


[Site "https://www.chess.com"]